[Event "Live Chess"]
[Site "Chess.com"]
[Date "2023.05.21"]
[Round "-"]
[White "Leonid_Starozhilov"]
[Black "Crowded_House"]
[Result "1-0"]
[WhiteElo "2639"]
[BlackElo "1662"]
[TimeControl "300"]
[EndTime "1:59:38 PDT"]
[Termination "Leonid_Starozhilov won by resignation"]

1. b3 {[%clk 0:04:58.6]} 1... e6 {[%clk 0:04:58.6]} 2. Bb2 {[%clk 0:04:58.5]}
2... d5 {[%clk 0:04:58]} 3. Nf3 {[%clk 0:04:50.3]} 3... c5 {[%clk 0:04:55.8]} 4.
e3 {[%clk 0:04:42]} 4... Nf6 {[%clk 0:04:54.8]} 5. Bb5+ {[%clk 0:04:40.7]} 5...
Bd7 {[%clk 0:04:50.7]} 6. a4 {[%clk 0:04:39.4]} 6... a6 {[%clk 0:04:47.8]} 7.
Bxd7+ {[%clk 0:04:38.2]} 7... Nbxd7 {[%clk 0:04:46.7]} 8. O-O {[%clk 0:04:38.1]}
8... Bd6 {[%clk 0:04:33.3]} 9. d3 {[%clk 0:04:38]} 9... O-O {[%clk 0:04:31.6]}
10. Nbd2 {[%clk 0:04:37.9]} 10... Qc7 {[%clk 0:04:30.3]} 11. e4 {[%clk
0:04:37.3]} 11... dxe4 {[%clk 0:04:27.8]} 12. dxe4 {[%clk 0:04:31.1]} 12... Ne5
{[%clk 0:04:18.6]} 13. Qe2 {[%clk 0:04:19.5]} 13... Nxf3+ {[%clk 0:04:17.2]} 14.
Nxf3 {[%clk 0:04:19.4]} 14... Be7 {[%clk 0:04:05.9]} 15. a5 {[%clk 0:04:16.2]}
15... Rfd8 {[%clk 0:03:58.8]} 16. Nd2 {[%clk 0:04:14.4]} 16... b5 {[%clk
0:03:40.8]} 17. axb6 {[%clk 0:04:08.1]} 17... Qxb6 {[%clk 0:03:39.5]} 18. Nc4
{[%clk 0:04:07.7]} 18... Qb5 {[%clk 0:03:30]} 19. Rfd1 {[%clk 0:03:57.1]} 19...
Rxd1+ {[%clk 0:03:17.2]} 20. Rxd1 {[%clk 0:03:54.3]} 20... Rd8 {[%clk
0:03:15.8]} 21. Rxd8+ {[%clk 0:03:52.8]} 21... Bxd8 {[%clk 0:03:14.5]} 22. Qd3
{[%clk 0:03:52.7]} 22... Qd7 {[%clk 0:03:01.5]} 23. Kf1 {[%clk 0:03:43.7]} 23...
Qxd3+ {[%clk 0:02:59.6]} 24. cxd3 {[%clk 0:03:43.6]} 24... Bc7 {[%clk 0:02:52]}
25. h3 {[%clk 0:03:41]} 25... Kf8 {[%clk 0:02:50]} 26. Ba3 {[%clk 0:03:39.9]}
26... Nd7 {[%clk 0:02:44.6]} 27. d4 {[%clk 0:03:37.9]} 27... Ke8 {[%clk
0:02:31.5]} 28. dxc5 {[%clk 0:03:36]} 28... g6 {[%clk 0:02:27.8]} 29. Ke2 {[%clk
0:03:35]} 29... h5 {[%clk 0:02:26.3]} 30. b4 {[%clk 0:03:34.2]} 30... Ne5 {[%clk
0:02:23.6]} 31. Nxe5 {[%clk 0:03:33]} 31... Bxe5 {[%clk 0:02:22.6]} 32. Kd3
{[%clk 0:03:32.7]} 32... Kd7 {[%clk 0:02:17.1]} 33. Bc1 {[%clk 0:03:30.8]} 33...
Kc6 {[%clk 0:02:14.1]} 34. Kc4 {[%clk 0:03:29.2]} 34... f5 {[%clk 0:02:06.9]}
35. exf5 {[%clk 0:03:25.7]} 35... exf5 {[%clk 0:02:05.6]} 36. f3 {[%clk
0:03:24.7]} 36... Bc7 {[%clk 0:01:54.6]} 37. Bg5 {[%clk 0:03:13.6]} 37... Be5
{[%clk 0:01:51.2]} 38. Bd8 {[%clk 0:03:11.6]} 38... Bg3 {[%clk 0:01:48.6]} 39.
Kd3 {[%clk 0:03:09.5]} 39... Be5 {[%clk 0:01:47.1]} 40. g4 {[%clk 0:03:07]}
40... fxg4 {[%clk 0:01:45.4]} 41. fxg4 {[%clk 0:03:04]} 41... hxg4 {[%clk
0:01:43.9]} 42. hxg4 {[%clk 0:03:02.9]} 42... Kb5 {[%clk 0:01:39.4]} 43. Ba5
{[%clk 0:02:59]} 43... Bg3 {[%clk 0:01:33.7]} 44. Ke4 {[%clk 0:02:56.5]} 44...
Be1 {[%clk 0:01:29.9]} 45. Kd5 {[%clk 0:02:55.2]} 45... Bg3 {[%clk 0:01:20.3]}
46. c6 {[%clk 0:02:54.4]} 46... Bf4 {[%clk 0:01:18.6]} 47. c7 {[%clk 0:02:53.4]}
47... Bxc7 {[%clk 0:01:16.3]} 48. Bxc7 {[%clk 0:02:53.3]} 48... Kxb4 {[%clk
0:01:15.3]} 49. Ke6 {[%clk 0:02:53]} 49... a5 {[%clk 0:01:12.4]} 50. Kf6 {[%clk
0:02:52.4]} 50... a4 {[%clk 0:01:11]} 51. Be5 {[%clk 0:02:51.8]} 51... a3 {[%clk
0:01:08.3]} 52. Kxg6 {[%clk 0:02:51.7]} 52... Kb3 {[%clk 0:01:07.7]} 53. Kf5
{[%clk 0:02:51.6]} 53... Ka2 {[%clk 0:01:07.2]} 54. g5 {[%clk 0:02:50.9]} 54...
Kb1 {[%clk 0:01:06.4]} 55. g6 {[%clk 0:02:50.8]} 55... a2 {[%clk 0:01:05.8]} 56.
g7 {[%clk 0:02:50.7]} 56... a1=Q {[%clk 0:01:05.2]} 57. Bxa1 {[%clk 0:02:49.8]}
57... Kxa1 {[%clk 0:01:04.7]} 58. g8=Q {[%clk 0:02:49.3]} 1-0

[Event "Live Chess"]
[Site "Chess.com"]
[Date "2023.05.21"]
[Round "-"]
[White "Alan_Richardson"]
[Black "LiamBellwood"]
[Result "1-0"]
[WhiteElo "1747"]
[BlackElo "1992"]
[TimeControl "300"]
[EndTime "1:59:39 PDT"]
[Termination "Alan_Richardson won on time"]

1. d4 {[%clk 0:04:59]} 1... e6 {[%clk 0:04:59.4]} 2. Nf3 {[%clk 0:04:57.1]} 2...
f5 {[%clk 0:04:59]} 3. Bf4 {[%clk 0:04:54.2]} 3... Nf6 {[%clk 0:04:58.4]} 4. e3
{[%clk 0:04:52.6]} 4... b6 {[%clk 0:04:58]} 5. h3 {[%clk 0:04:50.8]} 5... Bb7
{[%clk 0:04:57.6]} 6. Be2 {[%clk 0:04:49.7]} 6... Be7 {[%clk 0:04:55]} 7. c4
{[%clk 0:04:46]} 7... O-O {[%clk 0:04:54]} 8. Nc3 {[%clk 0:04:45]} 8... Ne4
{[%clk 0:04:52.2]} 9. O-O {[%clk 0:04:43.2]} 9... d6 {[%clk 0:04:51.1]} 10. Rc1
{[%clk 0:04:35.9]} 10... Nd7 {[%clk 0:04:48.5]} 11. b4 {[%clk 0:04:27.7]} 11...
Ndf6 {[%clk 0:04:40.3]} 12. a4 {[%clk 0:04:08.6]} 12... Nxc3 {[%clk 0:04:39.1]}
13. Rxc3 {[%clk 0:04:06.7]} 13... Ne4 {[%clk 0:04:39]} 14. Rc1 {[%clk
0:04:05.5]} 14... a5 {[%clk 0:04:37.6]} 15. b5 {[%clk 0:04:00.1]} 15... Bf6
{[%clk 0:04:30]} 16. Bh2 {[%clk 0:03:48.4]} 16... Kh8 {[%clk 0:04:28.1]} 17. Bd3
{[%clk 0:03:34.3]} 17... g5 {[%clk 0:04:20.9]} 18. Nd2 {[%clk 0:03:27.5]} 18...
Nxd2 {[%clk 0:04:05.6]} 19. Qxd2 {[%clk 0:03:24.5]} 19... g4 {[%clk 0:04:00.5]}
20. hxg4 {[%clk 0:03:12.6]} 20... Rg8 {[%clk 0:03:59.7]} 21. Bg3 {[%clk
0:02:56.8]} 21... Rxg4 {[%clk 0:03:50.8]} 22. c5 {[%clk 0:02:32.8]} 22... dxc5
{[%clk 0:03:26.4]} 23. dxc5 {[%clk 0:02:28.3]} 23... Bd5 {[%clk 0:03:13.4]} 24.
cxb6 {[%clk 0:02:08.9]} 24... cxb6 {[%clk 0:02:58.5]} 25. Qe2 {[%clk 0:02:01.7]}
25... Bh4 {[%clk 0:02:50.8]} 26. Bc4 {[%clk 0:01:50.6]} 26... Bb7 {[%clk
0:01:52.3]} 27. Be5+ {[%clk 0:01:41.9]} 27... Bf6 {[%clk 0:01:42.4]} 28. f3
{[%clk 0:01:40.1]} 28... Rg6 {[%clk 0:01:21.9]} 29. Qb2 {[%clk 0:01:30.5]} 29...
Bxe5 {[%clk 0:01:02.5]} 30. Qxe5+ {[%clk 0:01:28.2]} 30... Qf6 {[%clk
0:01:01.8]} 31. Qxf6+ {[%clk 0:01:13.8]} 31... Rxf6 {[%clk 0:01:01.7]} 32. Rfd1
{[%clk 0:01:09.4]} 32... Rc8 {[%clk 0:00:52.5]} 33. Bb3 {[%clk 0:01:04.3]} 33...
Rg8 {[%clk 0:00:37]} 34. Kf2 {[%clk 0:00:55.7]} 34... Rfg6 {[%clk 0:00:36.4]}
35. Rg1 {[%clk 0:00:54.4]} 35... h5 {[%clk 0:00:31.3]} 36. Rc7 {[%clk
0:00:51.7]} 36... R8g7 {[%clk 0:00:28.7]} 37. Rxg7 {[%clk 0:00:44.9]} 37... Kxg7
{[%clk 0:00:28.6]} 38. Rc1 {[%clk 0:00:43.3]} 38... Kf6 {[%clk 0:00:23.3]} 39.
Rc7 {[%clk 0:00:41.4]} 39... Rg7 {[%clk 0:00:22.3]} 40. Rxg7 {[%clk 0:00:36.9]}
40... Kxg7 {[%clk 0:00:22.2]} 41. Kg3 {[%clk 0:00:35.6]} 41... Kf6 {[%clk
0:00:22.1]} 42. Kh4 {[%clk 0:00:33.9]} 42... e5 {[%clk 0:00:18.9]} 43. Kxh5
{[%clk 0:00:32.3]} 43... e4 {[%clk 0:00:18.1]} 44. f4 {[%clk 0:00:29.3]} 44...
Bc8 {[%clk 0:00:16.1]} 45. Kh6 {[%clk 0:00:26.4]} 45... Bd7 {[%clk 0:00:15.5]}
46. Bc4 {[%clk 0:00:24.4]} 46... Be8 {[%clk 0:00:13.7]} 47. Bd5 {[%clk
0:00:21.2]} 47... Bd7 {[%clk 0:00:12.6]} 48. Bc6 {[%clk 0:00:19.7]} 48... Be6
{[%clk 0:00:11.3]} 49. Kh5 {[%clk 0:00:17.2]} 49... Bb3 {[%clk 0:00:10.3]} 50.
g4 {[%clk 0:00:14.4]} 50... fxg4 {[%clk 0:00:08.6]} 51. Kxg4 {[%clk 0:00:13.2]}
51... Bxa4 {[%clk 0:00:08.5]} 52. Kg3 {[%clk 0:00:09.8]} 52... Bc2 {[%clk
0:00:06.7]} 53. Kf2 {[%clk 0:00:09.5]} 53... a4 {[%clk 0:00:06.2]} 54. Ke1
{[%clk 0:00:09.4]} 54... a3 {[%clk 0:00:05.6]} 55. Kd2 {[%clk 0:00:09]} 55...
Bb3 {[%clk 0:00:04.6]} 56. Kc1 {[%clk 0:00:07.9]} 56... a2 {[%clk 0:00:03.7]}
57. Kb2 {[%clk 0:00:06.5]} 57... Bc4 {[%clk 0:00:03]} 58. Ka1 {[%clk 0:00:04.9]}
58... Kf5 {[%clk 0:00:02.4]} 59. Bd7+ {[%clk 0:00:02.9]} 59... Kg6 {[%clk
0:00:00.1]} 60. Kb2 {[%clk 0:00:01.7]} 1-0

[Event "Live Chess"]
[Site "Chess.com"]
[Date "2023.05.21"]
[Round "-"]
[White "MJMykh"]
[Black "mliszewski"]
[Result "1/2-1/2"]
[WhiteElo "1153"]
[BlackElo "1828"]
[TimeControl "300"]
[EndTime "1:59:48 PDT"]
[Termination "Game drawn by stalemate"]

1. e4 {[%clk 0:04:56.9]} 1... c6 {[%clk 0:04:59]} 2. Nf3 {[%clk 0:04:54]} 2...
d5 {[%clk 0:04:58.9]} 3. exd5 {[%clk 0:04:52.4]} 3... cxd5 {[%clk 0:04:58.5]} 4.
Nc3 {[%clk 0:04:51.9]} 4... Nc6 {[%clk 0:04:58.1]} 5. Bb5 {[%clk 0:04:51.3]}
5... Bg4 {[%clk 0:04:57]} 6. Bxc6+ {[%clk 0:04:49.9]} 6... bxc6 {[%clk
0:04:56.9]} 7. O-O {[%clk 0:04:48.9]} 7... e6 {[%clk 0:04:55.6]} 8. h3 {[%clk
0:04:48.2]} 8... Bh5 {[%clk 0:04:54.5]} 9. d3 {[%clk 0:04:47.2]} 9... Nf6 {[%clk
0:04:53.4]} 10. Bg5 {[%clk 0:04:46.8]} 10... Be7 {[%clk 0:04:52.6]} 11. Bxf6
{[%clk 0:04:46.2]} 11... Bxf6 {[%clk 0:04:52.1]} 12. Qd2 {[%clk 0:04:46]} 12...
Bxf3 {[%clk 0:04:49.3]} 13. gxf3 {[%clk 0:04:44.8]} 13... O-O {[%clk 0:04:49.2]}
14. Rab1 {[%clk 0:04:40.8]} 14... Rb8 {[%clk 0:04:47.1]} 15. Kh2 {[%clk
0:04:38.3]} 15... Qd6+ {[%clk 0:04:44.9]} 16. Kg2 {[%clk 0:04:36.3]} 16... Rb4
{[%clk 0:04:41]} 17. Rg1 {[%clk 0:04:35]} 17... Rh4 {[%clk 0:04:38.1]} 18. Kf1
{[%clk 0:04:33.1]} 18... Rxh3 {[%clk 0:04:31.4]} 19. a3 {[%clk 0:04:30.9]} 19...
Rxf3 {[%clk 0:04:25.1]} 20. d4 {[%clk 0:04:28.8]} 20... Qh2 {[%clk 0:04:20.3]}
21. Na4 {[%clk 0:04:21.9]} 21... Bh4 {[%clk 0:04:18.4]} 22. Rg2 {[%clk
0:04:09.4]} 22... Qh3 {[%clk 0:04:17.2]} 23. Qh6 {[%clk 0:04:04.8]} 23... Rxf2+
{[%clk 0:04:12.9]} 24. Kg1 {[%clk 0:03:58.8]} 24... Qh2+ {[%clk 0:04:11.5]} 25.
Rxh2 {[%clk 0:03:57]} 25... Rxh2 {[%clk 0:04:08.8]} 26. Kxh2 {[%clk 0:03:55.8]}
26... gxh6 {[%clk 0:04:07.4]} 27. Kh3 {[%clk 0:03:55.2]} 27... Bf6 {[%clk
0:04:06.3]} 28. Rg1+ {[%clk 0:03:53.7]} 28... Kh8 {[%clk 0:04:04.9]} 29. c3
{[%clk 0:03:52.7]} 29... Rb8 {[%clk 0:03:58.2]} 30. b4 {[%clk 0:03:51]} 30... a5
{[%clk 0:03:56.1]} 31. Nc5 {[%clk 0:03:48.1]} 31... axb4 {[%clk 0:03:54.7]} 32.
axb4 {[%clk 0:03:47.9]} 32... Rd8 {[%clk 0:03:46.3]} 33. Nb7 {[%clk 0:03:45.4]}
33... Rd7 {[%clk 0:03:44.9]} 34. Nc5 {[%clk 0:03:44.2]} 34... Ra7 {[%clk
0:03:43.2]} 35. Rf1 {[%clk 0:03:40.5]} 35... Kg7 {[%clk 0:03:40.5]} 36. Rg1+
{[%clk 0:03:39.1]} 36... Bg5 {[%clk 0:03:38.6]} 37. Nd3 {[%clk 0:03:35.6]} 37...
Ra3 {[%clk 0:03:34.7]} 38. Rc1 {[%clk 0:03:34.2]} 38... Bxc1 {[%clk 0:03:33.3]}
39. Nxc1 {[%clk 0:03:32.9]} 39... Rxc3+ {[%clk 0:03:32.6]} 40. Nd3 {[%clk
0:03:29.4]} 40... Rxd3+ {[%clk 0:03:32]} 41. Kg4 {[%clk 0:03:29.1]} 41... Rxd4+
{[%clk 0:03:31.4]} 42. Kh5 {[%clk 0:03:28.4]} 42... Rxb4 {[%clk 0:03:31.3]}
1/2-1/2

[Event "Live Chess"]
[Site "Chess.com"]
[Date "2023.05.21"]
[Round "-"]
[White "Duke_of_Bebington"]
[Black "HoarseyHorsey"]
[Result "1-0"]
[WhiteElo "1594"]
[BlackElo "1449"]
[TimeControl "300"]
[EndTime "1:59:55 PDT"]
[Termination "Duke_of_Bebington won by resignation"]

1. e4 {[%clk 0:04:57.7]} 1... c5 {[%clk 0:04:58.5]} 2. c3 {[%clk 0:04:56.4]}
2... e6 {[%clk 0:04:57.1]} 3. d4 {[%clk 0:04:55.4]} 3... d5 {[%clk 0:04:56.5]}
4. exd5 {[%clk 0:04:47.2]} 4... exd5 {[%clk 0:04:56.4]} 5. Nf3 {[%clk 0:04:45]}
5... Nc6 {[%clk 0:04:55.7]} 6. Be3 {[%clk 0:04:42.5]} 6... cxd4 {[%clk
0:04:47.5]} 7. Nxd4 {[%clk 0:04:40.5]} 7... Nf6 {[%clk 0:04:44.1]} 8. Bb5 {[%clk
0:04:37.3]} 8... Bd7 {[%clk 0:04:40.2]} 9. O-O {[%clk 0:04:31]} 9... Be7 {[%clk
0:04:32.4]} 10. Re1 {[%clk 0:04:22.8]} 10... O-O {[%clk 0:04:31.1]} 11. Nd2
{[%clk 0:04:22.1]} 11... a6 {[%clk 0:04:25.9]} 12. Ba4 {[%clk 0:04:18.5]} 12...
Nxd4 {[%clk 0:04:20.7]} 13. Bxd7 {[%clk 0:04:14.9]} 13... Qxd7 {[%clk
0:04:20.6]} 14. Bxd4 {[%clk 0:04:13.4]} 14... Rfe8 {[%clk 0:04:14]} 15. Qf3
{[%clk 0:04:11.3]} 15... Rad8 {[%clk 0:04:07.3]} 16. Rad1 {[%clk 0:04:05.6]}
16... Qf5 {[%clk 0:03:50]} 1-0

[Event "Live Chess"]
[Site "Chess.com"]
[Date "2023.05.21"]
[Round "-"]
[White "stevochess11"]
[Black "Goblinbasher"]
[Result "1/2-1/2"]
[WhiteElo "1727"]
[BlackElo "1236"]
[TimeControl "300"]
[EndTime "2:00:01 PDT"]
[Termination "Game drawn - insufficient material"]

1. d4 {[%clk 0:04:57.3]} 1... f5 {[%clk 0:04:57.4]} 2. Nf3 {[%clk 0:04:55]} 2...
Nf6 {[%clk 0:04:54.9]} 3. Bg5 {[%clk 0:04:53.7]} 3... e6 {[%clk 0:04:53.2]} 4.
Nbd2 {[%clk 0:04:51.6]} 4... Be7 {[%clk 0:04:52.1]} 5. Bxf6 {[%clk 0:04:49.7]}
5... Bxf6 {[%clk 0:04:50.8]} 6. e4 {[%clk 0:04:49.6]} 6... fxe4 {[%clk
0:04:49.1]} 7. Nxe4 {[%clk 0:04:48.5]} 7... O-O {[%clk 0:04:47.2]} 8. Bd3 {[%clk
0:04:47.2]} 8... d6 {[%clk 0:04:38]} 9. O-O {[%clk 0:04:45.2]} 9... b6 {[%clk
0:04:26]} 10. c3 {[%clk 0:04:43.1]} 10... Bb7 {[%clk 0:04:24.7]} 11. Ng3 {[%clk
0:04:37.9]} 11... Nd7 {[%clk 0:04:21.4]} 12. Qe2 {[%clk 0:04:33]} 12... Re8
{[%clk 0:04:09.1]} 13. Rfe1 {[%clk 0:04:28.6]} 13... Bxf3 {[%clk 0:04:06.4]} 14.
Qxf3 {[%clk 0:04:27.1]} 14... Rb8 {[%clk 0:04:05]} 15. Qe4 {[%clk 0:04:23]}
15... g6 {[%clk 0:04:01]} 16. Nh5 {[%clk 0:04:18.2]} 16... Qe7 {[%clk
0:03:54.8]} 17. Nf4 {[%clk 0:04:15.6]} 17... d5 {[%clk 0:03:39.4]} 18. Qf3
{[%clk 0:04:08]} 18... Qf7 {[%clk 0:03:23.6]} 19. Qg3 {[%clk 0:04:01.3]} 19...
c5 {[%clk 0:03:09.8]} 20. Nxg6 {[%clk 0:03:58.7]} 20... hxg6 {[%clk 0:03:06.7]}
21. Bxg6 {[%clk 0:03:57.7]} 21... Qg7 {[%clk 0:03:02]} 22. Bxe8 {[%clk
0:03:54.6]} 22... Rxe8 {[%clk 0:02:57.6]} 23. Qxg7+ {[%clk 0:03:53]} 23... Kxg7
{[%clk 0:02:56.5]} 24. Re3 {[%clk 0:03:50.6]} 24... cxd4 {[%clk 0:02:52]} 25.
cxd4 {[%clk 0:03:48.8]} 25... Bxd4 {[%clk 0:02:50.4]} 26. Rg3+ {[%clk
0:03:47.4]} 26... Kf7 {[%clk 0:02:46.9]} 27. Rc1 {[%clk 0:03:43.1]} 27... Bxb2
{[%clk 0:02:40.4]} 28. Rc7 {[%clk 0:03:40.4]} 28... a5 {[%clk 0:02:34]} 29.
Rxd7+ {[%clk 0:03:39]} 29... Kf6 {[%clk 0:02:28.1]} 30. Rf3+ {[%clk 0:03:37.3]}
30... Ke5 {[%clk 0:02:26.5]} 31. Re3+ {[%clk 0:03:36.1]} 31... Kd4 {[%clk
0:02:23.7]} 32. Rb7 {[%clk 0:03:31.7]} 32... Kc4 {[%clk 0:02:14.7]} 33. Rxb6
{[%clk 0:03:29.7]} 33... Bd4 {[%clk 0:02:07.9]} 34. Rc6+ {[%clk 0:03:27.6]}
34... Kb5 {[%clk 0:02:02.8]} 35. Rc2 {[%clk 0:03:22.4]} 35... Bxe3 {[%clk
0:02:00.8]} 36. fxe3 {[%clk 0:03:22.3]} 36... e5 {[%clk 0:01:56.2]} 37. Kf2
{[%clk 0:03:20.5]} 37... Rf8+ {[%clk 0:01:54.1]} 38. Ke2 {[%clk 0:03:19]} 38...
a4 {[%clk 0:01:46.9]} 39. Kd3 {[%clk 0:03:11.3]} 39... Rg8 {[%clk 0:01:44.5]}
40. g3 {[%clk 0:03:09.8]} 40... Rg4 {[%clk 0:01:42.7]} 41. Rb2+ {[%clk
0:03:06.7]} 41... Kc5 {[%clk 0:01:40]} 42. a3 {[%clk 0:03:04.4]} 42... Rc4
{[%clk 0:01:32.5]} 43. Rb8 {[%clk 0:03:00.5]} 43... e4+ {[%clk 0:01:27.6]} 44.
Kd2 {[%clk 0:02:57.3]} 44... Kd6 {[%clk 0:01:18]} 45. h4 {[%clk 0:02:50.2]}
45... Rc7 {[%clk 0:01:15.6]} 46. Ra8 {[%clk 0:02:45.8]} 46... Rc4 {[%clk
0:01:13.3]} 47. h5 {[%clk 0:02:25.6]} 47... d4 {[%clk 0:01:11.9]} 48. exd4
{[%clk 0:02:23.2]} 48... Rxd4+ {[%clk 0:01:10.4]} 49. Ke3 {[%clk 0:02:22.5]}
49... Rd3+ {[%clk 0:01:07]} 50. Kxe4 {[%clk 0:02:20.6]} 50... Rxg3 {[%clk
0:01:05.8]} 51. Rxa4 {[%clk 0:02:17]} 51... Rg4+ {[%clk 0:01:04.5]} 52. Kf5
{[%clk 0:02:14]} 52... Rxa4 {[%clk 0:01:02.9]} 53. h6 {[%clk 0:02:13.7]} 53...
Ra8 {[%clk 0:00:54.5]} 54. Kg6 {[%clk 0:02:13.6]} 54... Rh8 {[%clk 0:00:53]} 55.
h7 {[%clk 0:02:11.7]} 55... Rxh7 {[%clk 0:00:52.2]} 56. Kxh7 {[%clk 0:02:10.8]}
56... Kc5 {[%clk 0:00:51.7]} 57. Kg6 {[%clk 0:02:10.1]} 57... Kb5 {[%clk
0:00:50.9]} 58. Kf5 {[%clk 0:02:10]} 58... Ka4 {[%clk 0:00:50.4]} 59. Ke5 {[%clk
0:02:09.9]} 59... Kxa3 {[%clk 0:00:50.1]} 1/2-1/2

[Event "Live Chess"]
[Site "Chess.com"]
[Date "2023.05.21"]
[Round "-"]
[White "Woodpusher500"]
[Black "domrobson"]
[Result "0-1"]
[WhiteElo "1040"]
[BlackElo "1731"]
[TimeControl "300"]
[EndTime "2:00:14 PDT"]
[Termination "domrobson won by resignation"]

1. e4 {[%clk 0:04:55.4]} 1... e5 {[%clk 0:04:59]} 2. Nc3 {[%clk 0:04:51.7]} 2...
Nf6 {[%clk 0:04:57.8]} 3. f4 {[%clk 0:04:47.6]} 3... d5 {[%clk 0:04:56.8]} 4.
fxe5 {[%clk 0:04:36.3]} 4... Nxe4 {[%clk 0:04:53]} 5. Qf3 {[%clk 0:04:28.8]}
5... Nc6 {[%clk 0:04:52]} 6. Nxe4 {[%clk 0:04:17]} 6... Nd4 {[%clk 0:04:49.3]}
7. Qc3 {[%clk 0:03:53.3]} 7... dxe4 {[%clk 0:04:46.3]} 8. d3 {[%clk 0:03:40.2]}
8... exd3 {[%clk 0:04:40.8]} 9. Qxd3 {[%clk 0:03:24.9]} 9... Bf5 {[%clk
0:04:34.3]} 10. Qd2 {[%clk 0:03:02.8]} 10... Nxc2+ {[%clk 0:04:25]} 11. Kd1
{[%clk 0:02:57.8]} 11... Ne3+ {[%clk 0:04:22.6]} 12. Ke1 {[%clk 0:02:52.8]}
12... Qxd2+ {[%clk 0:04:18.9]} 13. Bxd2 {[%clk 0:02:50.2]} 13... Nc2+ {[%clk
0:04:18]} 14. Kd1 {[%clk 0:02:47.6]} 14... Nxa1 {[%clk 0:04:17.4]} 15. Nf3
{[%clk 0:02:44]} 15... O-O-O {[%clk 0:04:13.1]} 16. Be2 {[%clk 0:02:31.4]} 16...
Nc2 {[%clk 0:04:09.8]} 17. Rf1 {[%clk 0:02:26]} 17... Ne3+ {[%clk 0:04:05.6]}
18. Ke1 {[%clk 0:02:14.1]} 18... Nxf1 {[%clk 0:04:04.2]} 19. Kxf1 {[%clk
0:02:12.4]} 19... Be4 {[%clk 0:04:00.4]} 0-1

[Event "Live Chess"]
[Site "Chess.com"]
[Date "2023.05.21"]
[Round "-"]
[White "CroasArRheun"]
[Black "Long1968"]
[Result "1-0"]
[WhiteElo "1804"]
[BlackElo "982"]
[TimeControl "300"]
[EndTime "2:00:19 PDT"]
[Termination "CroasArRheun won on time"]

1. d4 {[%clk 0:04:58.5]} 1... e6 {[%clk 0:04:57.6]} 2. c4 {[%clk 0:04:56.6]}
2... d5 {[%clk 0:04:56.1]} 3. Nc3 {[%clk 0:04:55.7]} 3... Nf6 {[%clk 0:04:54.1]}
4. cxd5 {[%clk 0:04:54.8]} 4... exd5 {[%clk 0:04:51.5]} 5. Bg5 {[%clk
0:04:53.4]} 5... Be7 {[%clk 0:04:48.8]} 6. e3 {[%clk 0:04:52.3]} 6... b6 {[%clk
0:04:45.3]} 7. Bd3 {[%clk 0:04:51.1]} 7... Bb7 {[%clk 0:04:42.4]} 8. Nf3 {[%clk
0:04:48.6]} 8... h6 {[%clk 0:04:35.5]} 9. Bh4 {[%clk 0:04:46.7]} 9... Ne4 {[%clk
0:04:20.3]} 10. Bxe7 {[%clk 0:04:41.1]} 10... Qxe7 {[%clk 0:04:14.5]} 11. Ne5
{[%clk 0:04:39.8]} 11... Nxc3 {[%clk 0:04:07.8]} 12. bxc3 {[%clk 0:04:38.5]}
12... O-O {[%clk 0:03:44.4]} 13. O-O {[%clk 0:04:33.9]} 13... Nd7 {[%clk
0:03:30.2]} 14. Nxd7 {[%clk 0:04:30]} 14... Qxd7 {[%clk 0:03:26.2]} 15. Bc2
{[%clk 0:04:29.1]} 15... c5 {[%clk 0:03:12.4]} 16. Qd3 {[%clk 0:04:27.7]} 16...
g6 {[%clk 0:03:04.3]} 17. Rad1 {[%clk 0:04:23.8]} 17... c4 {[%clk 0:02:50.8]}
18. Qe2 {[%clk 0:04:21.3]} 18... Rae8 {[%clk 0:02:37.9]} 19. Qf3 {[%clk
0:04:19.1]} 19... Bc8 {[%clk 0:02:22]} 20. Rfe1 {[%clk 0:04:11.6]} 20... f5
{[%clk 0:02:07.7]} 21. Qf4 {[%clk 0:04:04.9]} 21... g5 {[%clk 0:02:00.6]} 22.
Qf3 {[%clk 0:03:58.2]} 22... f4 {[%clk 0:01:31.4]} 23. exf4 {[%clk 0:03:54]}
23... Rxf4 {[%clk 0:01:07.5]} 24. Rxe8+ {[%clk 0:03:50.3]} 24... Qxe8 {[%clk
0:01:04.9]} 25. Qxd5+ {[%clk 0:03:48.9]} 25... Be6 {[%clk 0:00:55.8]} 26. Qe5
{[%clk 0:03:46.8]} 26... Qf7 {[%clk 0:00:37.5]} 27. f3 {[%clk 0:03:39.7]} 27...
Bd5 {[%clk 0:00:22.7]} 28. Re1 {[%clk 0:03:36.8]} 28... g4 {[%clk 0:00:12]} 29.
Qe8+ {[%clk 0:03:33.8]} 29... Qxe8 {[%clk 0:00:08.7]} 30. Rxe8+ {[%clk
0:03:33.6]} 30... Kf7 {[%clk 0:00:06]} 31. Re5 {[%clk 0:03:33.1]} 1-0

[Event "Live Chess"]
[Site "Chess.com"]
[Date "2023.05.21"]
[Round "-"]
[White "hturner40"]
[Black "ProfPoisson"]
[Result "1-0"]
[WhiteElo "1783"]
[BlackElo "1216"]
[TimeControl "300"]
[EndTime "2:00:25 PDT"]
[Termination "hturner40 won by resignation"]

1. Nf3 {[%clk 0:04:56.7]} 1... f5 {[%clk 0:04:56.9]} 2. e4 {[%clk 0:04:54.3]}
2... fxe4 {[%clk 0:04:50.5]} 3. Ng5 {[%clk 0:04:51.5]} 3... Nf6 {[%clk
0:04:41.9]} 4. d3 {[%clk 0:04:50.1]} 4... d5 {[%clk 0:04:34.7]} 5. dxe4 {[%clk
0:04:47.4]} 5... dxe4 {[%clk 0:04:31.4]} 6. Qxd8+ {[%clk 0:04:43.7]} 6... Kxd8
{[%clk 0:04:26.5]} 7. Nf7+ {[%clk 0:04:42.6]} 7... Ke8 {[%clk 0:04:22.8]} 8.
Nxh8 {[%clk 0:04:41.4]} 8... e5 {[%clk 0:04:18.8]} 9. Bc4 {[%clk 0:04:37.3]}
9... Nc6 {[%clk 0:03:57.8]} 10. Bd2 {[%clk 0:03:40]} 10... Nd4 {[%clk
0:03:36.3]} 11. Kd1 {[%clk 0:03:38.7]} 11... Bg4+ {[%clk 0:03:30.5]} 12. Kc1
{[%clk 0:03:32.6]} 12... Rd8 {[%clk 0:03:10.7]} 13. Nf7 {[%clk 0:03:28.3]} 13...
e3 {[%clk 0:02:47.4]} 14. fxe3 {[%clk 0:03:13.6]} 14... c6 {[%clk 0:02:29.3]}
15. Nxd8 {[%clk 0:03:07.4]} 15... b5 {[%clk 0:02:20.5]} 16. exd4 {[%clk
0:03:03.3]} 16... bxc4 {[%clk 0:02:17.6]} 17. dxe5 {[%clk 0:03:02.3]} 1-0